Cogmind - Beta 16 @@@ ROGUE MODE // 2026.01.23 @ 02:47:26 Player: Tollhouse Result: Destroyed by G-34 Mercenary with Small Laser Performance ------------- Evolutions (1) 500 Regions Visited (3) 600 Robots Destroyed (10) 50 Value Destroyed (401) 401 Prototype IDs (0) 0 Alien Tech Used (0) 0 Bonus (35) 35 TOTAL SCORE: 1586 Bonus ------- Follower Combat Kills 35 Cogmind --------- Core Integrity 0/400 Matter 287/300 Energy 17/100 System Corruption 0% Temperature Cool (18) Movement Flying (440) Ox5 Location -9/Materials Parts ------- > --- POWER (2) -------- (None) > --- PROPULSION (2) --- Flight Unit > --- UTILITY (2) ------ Improved Heat Sink Large Storage Unit > --- WEAPON (3) ------- (None) > --- INVENTORY (15) --- Aluminum Leg Improved Heat Sink Sensor Array Improved Targeting Computer Peak State ------------ > --- POWER ------------ Light Nuclear Core > --- PROPULSION ------- Aluminum Leg Carbon-fiber Leg > --- UTILITY ---------- Large Storage Unit Sensor Array > --- WEAPON ----------- Medium Laser Shotgun Datajack > --- INVENTORY -------- Aluminum Leg Flight Unit Flight Unit Improved Heat Sink Improved Heat Sink Improved Targeting Computer Light Armor Plating Beamcaster Assault Rifle [Rating: 14] Favorites ----------- Power Ion Engine Engine Ion Engine Power Core Light Nuclear Core Propulsion Aluminum Leg Leg Aluminum Leg Flight Unit Flight Unit Utility Large Storage Unit Device Sensor Array Storage Large Storage Unit Protection Light Armor Plating Weapon Shotgun Energy Gun EM Pulse Gun Ballistic Gun Shotgun Special Melee Weapon Datajack Build | -11 -10 -10 -9 ------- Run | Yrd Mat Min Mat Slots Evolved 2 | . . . 2 Power 1 | . . . 1 Propulsion . | . . . . Utility . | . . . . Weapon 1 | . . . 1 Parts Attached 22 | 5 3 6 8 Power 3 | 1 . 2 . Engine 2 | 1 . 1 . Core 1 | . . 1 . Reactor . | . . . . Propulsion 7 | 2 . 3 2 Treads . | . . . . Leg 5 | 2 . 3 . Wheel . | . . . . Hover . | . . . . Flight 2 | . . . 2 Utility 6 | 1 3 . 2 Device 2 | . 1 . 1 Storage 3 | 1 2 . . Processor . | . . . . Hackware . | . . . . Protection 1 | . . . 1 Artifact . | . . . . Weapon 6 | 1 . 1 4 Energy Gun 3 | 1 . . 2 Energy Cannon . | . . . . Ballistic Gun 2 | . . 1 1 Ballistic Cannon . | . . . . Launcher . | . . . . Special Weapon . | . . . . Impact Weapon . | . . . . Slashing Weapon . | . . . . Piercing Weapon . | . . . . Special Melee Weapon 1 | . . . 1 Unidentified Prototypes . | . . . . Parts Lost 11 | . . 1 10 Power 1 | . . . 1 Propulsion 3 | . . . 3 Utility 1 | . . . 1 Weapon 6 | . . 1 5 Highest Loss Streak 10 | . . 1 10 To Critical Strikes . | . . . . Average Backups 9 | 4 9 9 8 Power . | . 1 . . Propulsion 2 | 2 4 2 3 Utility 2 | . . 3 4 Weapon 2 | 1 2 2 1 Tool/Special . | . . . . Unused Backups 9 | . 5 1 3 Power 1 | . . 1 . Propulsion 5 | . 4 . 1 Utility 3 | . 1 . 2 Weapon . | . . . . Tool/Special . | . . . . Average Slot Usage (%) 83 | . 83 84 80 Engine 7 | . 14 6 . Core 5 | . . 7 9 Leg 26 | . 28 27 19 Device 9 | . 1 14 9 Storage 16 | . 25 14 11 Energy Gun 8 | . 14 4 10 Ballistic Gun 7 | . . 9 10 Special Melee Weapon 1 | . . . 9 Peak Build Rating 14 | 5 7 13 14 Average Rating 9 | 4 6 9 12 On Entrance 6 | . 5 7 13 Avg Prop Armor Cover (%) . | . . . . Naked Turns . | . . . . Heaviest Build 37 | 12 37 31 34 Greatest Support 25 | 20 20 25 25 Greatest Overweight (x) 3 | 3 1 3 1 Average Overweight (x) . | . . 1 1 Largest Inventory Capacity 15 | 8 15 15 15 Average Capacity 13 | 7 11 15 15 Most Carried 15 | 7 15 15 10 Average Carried 9 | 4 9 9 8 Final Capacity 15 | 8 15 15 15 Final Carried 11 | 7 9 11 4 Class Distribution -------------------- 100% | Mutant Dominant Class ---------------- Mutant | -10/Materials Mutant | -10/Mines Mutant | -9/Materials Resources | -11 -10 -10 -9 ----------- Run | Yrd Mat Min Mat Matter Collected 429 | 179 75 125 50 Remotely . | . . . . Salvage Created 474 | . 109 74 291 Parts 27 | . 6 4 17 Haulers Intercepted . | . . . . Recyclers Shooed . | . . . . Parts Field Recycled . | . . . . Retrieved Matter . | . . . . Parts Self-Destructed . | . . . . Prevented . | . . . . Parts Restored . | . . . . Kills | -11 -10 -10 -9 ------- Run | Yrd Mat Min Mat Combat Hostiles Destroyed 10 | . 2 2 6 Guns 9 | . 2 2 5 Classes Destroyed 3 | . 1 . 2 Grunt 6 | . 2 2 2 Brawler 1 | . . . 1 Sentry 3 | . . . 3 Best Kill Streak 6 | . 1 2 6 Combat Bots Only 6 | . 1 2 6 Max Kills in Single Turn 2 | . 1 1 2 Gunslinging 1 | . . . 1 Exploded . | . . . . Melee . | . . . . Uniques/NPCs Destroyed . | . . . . Combat | -11 -10 -10 -9 -------- Run | Yrd Mat Min Mat Hostile Shots Fired 170 | . 17 17 136 Missed 47 | . 5 2 40 Hits 123 | . 12 15 96 Melee 3 | . . . 3 Projectile 120 | . 12 15 93 Critical Strikes 6 | . . . 6 Damage Taken 1617 | . 150 164 1303 Core 442 | . 23 10 409 Absorbed by Shields . | . . . . Core Remaining (%) 93 | 100 . 86 . Volleys Fired 40 | . 13 10 17 Largest 2 | . 1 1 2 Hottest 125 | . 40 40 125 Shots Fired 48 | . 13 10 25 Gun 48 | . 13 10 25 Cannon . | . . . . Launcher . | . . . . Special . | . . . . Kinetic 17 | . . 9 8 Thermal 17 | . . . 17 Explosive . | . . . . Electromagnetic 14 | . 13 1 . Robot Hit Streak 13 | . 4 5 13 Robot Miss Streak 2 | . 1 1 2 Penetration Max . | . . . . Secondary Targets 2 | . . . 2 Max Gunslinging Chain 1 | . . . 1 Shots Hit Robots 40 | . 9 9 22 Core Hits 18 | . 5 4 9 Critical Kills . | . . . . Critical Parts Destroyed . | . . . . Critical Strikes 2 | . . . 2 Burn 2 | . . . 2 Melee Attacks . | . . . . Impact . | . . . . Slashing . | . . . . Piercing . | . . . . Sneak Attacks . | . . . . Combat Hostiles . | . . . . Follow-up Attacks . | . . . . Damage Inflicted 652 | . 121 164 367 Guns 636 | . 121 148 367 Cannons . | . . . . Explosions . | . . . . Melee . | . . . . Ramming 16 | . . 16 . Kinetic 263 | . . 135 128 Thermal 239 | . . . 239 Explosive . | . . . . Electromagnetic 134 | . 121 13 . Impact . | . . . . Slashing . | . . . . Piercing . | . . . . Highest Corruption . | . . . . Average Corruption . | . . . . Corruption Purged . | . . . . Corruption Blocked . | . . . . Overload Shots . | . . . . Overflow Damage . | . . . . Projectiles . | . . . . Explosions . | . . . . Melee . | . . . . Knockbacks 1 | . . 1 . Impact 1 | . . 1 . Kinetic . | . . . . Secondary . | . . . . Self-Inflicted Damage . | . . . . Shots . | . . . . Rammed . | . . . . Targets Rammed 5 | . . 5 . Kicked 5 | . . 5 . Crushed . | . . . . Highest Temperature 321 | . 36 . 321 Average Temperature 93 | . 23 . 120 Received Heat Transfer 708 | . 84 72 552 Effects 1 | . . . 1 Energy Bleed 1 | . . . 1 Siege Activations . | . . . . Martial Activations . | . . . . Shielding Activations . | . . . . Robots Disrupted . | . . . . Combat Hostiles . | . . . . Robots Corrupted . | . . . . Combat Hostiles . | . . . . Parts Fried 1 | . 1 . . Impact Corruptions . | . . . . Robots Melted 1 | . . . 1 Combat Hostiles 1 | . . . 1 Parts Melted . | . . . . Heat Transferred 740 | . . . 740 Parts Sabotaged . | . . . . Parts Stolen . | . . . . Parts Stripped . | . . . . Power Chain Reactions . | . . . . Alert | -11 -10 -10 -9 ------- Run | Yrd Mat Min Mat Maximum Alert Level . | . . . . Low Security (%) 100 | 100 100 100 100 Level 1 . | . . . . Level 2 . | . . . . Level 3 . | . . . . Level 4 . | . . . . Level 5 . | . . . . High Security . | . . . . Max Security . | . . . . Peak Influence 129 | . 45 129 105 Initial 6 | . . 6 . Average 11 | . 5 16 8 Influence Increases 439 | . 65 189 185 Destroy 0b10 Robot/C 300 | . 40 140 120 Destroy Leader 90 | . 10 30 50 Allied During Kill 19 | . . 19 . Lose Combat Pursuer 30 | . 15 . 15 Influence Decreases 364 | . 48 206 110 Entered New Map 11 | . . 11 . Time Decay 233 | . 48 155 30 Lost Part 80 | . . . 80 Lost Ally 40 | . . 40 . Squads Dispatched 2 | . 1 . 1 Investigation 1 | . . . 1 Extermination . | . . . . Reinforcement 1 | . 1 . . Assault . | . . . . Garrison . | . . . . Intercept . | . . . . Searches Triggered . | . . . . Construction Impeded . | . . . . Haulers Reinforced . | . . . . Active Scanning Responses . | . . . . Cargo Convoy Interrupts . | . . . . Stealth | -11 -10 -10 -9 --------- Run | Yrd Mat Min Mat Distress Signals 1 | . . . 1 Communications Jammed . | . . . . Distress Signals . | . . . . Times Spotted 23 | . 3 8 12 Peak Tracking Total 11 | . 2 4 11 Tactical Retreats 2 | . 1 . 1 Traps | -11 -10 -10 -9 ------- Run | Yrd Mat Min Mat Traps Triggered . | . . . . Indirectly . | . . . . Trap Hack Attempts . | . . . . Triggered . | . . . . Disarmed . | . . . . Reprogrammed . | . . . . Reused . | . . . . Traps Extracted . | . . . . Installed . | . . . . Triggered . | . . . . Machines | -11 -10 -10 -9 ---------- Run | Yrd Mat Min Mat Machines Disabled . | . . . . Max in Single Turn . | . . . . Machines Repaired . | . . . . Machines Dismantled . | . . . . Machines Sabotaged . | . . . . Overloaded Fab Kills . | . . . . Hacking | -11 -10 -10 -9 --------- Run | Yrd Mat Min Mat Machines Accessed 2 | . 1 . 1 Terminals 1 | . . . 1 Fabricators . | . . . . Repair Stations . | . . . . Recycling Units 1 | . 1 . . Scanalyzers . | . . . . Garrison Access . | . . . . Total Hacks 4 | . 1 . 3 Successful 3 | . 1 . 2 Failed 1 | . . . 1 Catastrophic . | . . . . Database Lockouts . | . . . . Manual . | . . . . Terminals 3 | . . . 3 Fabricators . | . . . . Repair Stations . | . . . . Recycling Units 1 | . 1 . . Scanalyzers . | . . . . Garrison Access . | . . . . Terminal Hacks 2 | . . . 2 Record 2 | . . . 2 Fabricator Hacks . | . . . . Repair Station Hacks . | . . . . Recycling Unit Hacks 1 | . 1 . . Report Inventory 1 | . 1 . . Scanalyzer . | . . . . Garrison Access Hacks . | . . . . Unauthorized Hacks . | . . . . Terminals . | . . . . Fabricators . | . . . . Repair Stations . | . . . . Recycling Units . | . . . . Scanalyzers . | . . . . Garrison Access . | . . . . Data Cores Recovered . | . . . . Used . | . . . . Hacking Detections 2 | . 1 . 1 Full Trace Events 1 | . . . 1 Feedback Events . | . . . . Feedback Blocked . | . . . . Robot Schematics Acquired . | . . . . Robots Built . | . . . . Authchips . | . . . . Time . | . . . . Total Robot Build Rating . | . . . . Part Schematics Acquired . | . . . . Parts Built . | . . . . Authchips . | . . . . Time . | . . . . Total Part Build Rating . | . . . . Part Studies Acquired . | . . . . Parts Repaired . | . . . . Time . | . . . . Parts Recycled . | . . . . Recycled Matter . | . . . . Retrieved Matter . | . . . . Retrieved Components . | . . . . Parts Scanalyzed . | . . . . Part Schematics Acquired . | . . . . Parts Damaged . | . . . . Bothacking | -11 -10 -10 -9 ------------ Run | Yrd Mat Min Mat Used RIF Installer . | . . . . Robots Hacked . | . . . . Non-combat . | . . . . Combat . | . . . . Robot Hacks Applied . | . . . . Relay Couplers Released . | . . . . Fabnet Peak Effective % . | . . . . Robots Rewired . | . . . . Allies Hacked . | . . . . Hacks Repelled . | . . . . Allies | -11 -10 -10 -9 -------- Run | Yrd Mat Min Mat Total Allies 3 | . . 3 . Largest Group 3 | . . 3 . Highest-Rated Group 40 | . . 40 . Highest-Rated Ally 16 | . . 16 . Total Orders . | . . . . Ally Attacks 23 | . . 23 . Total Damage 222 | . . 222 . Kills 5 | . . 5 . Allies Corrupted . | . . . . Allies Melted . | . . . . Intel | -11 -10 -10 -9 ------- Run | Yrd Mat Min Mat Active Infowar (turns) 1462 | . 45 1139 278 Sensors 1462 | . 45 1139 278 Robot Analysis Total . | . . . . Derelict Logs Recovered 1 | . . 1 . Drone Launches . | . . . . Drone Recoveries . | . . . . Exploration | -11 -10 -10 -9 ------------- Run | Yrd Mat Min Mat Turns Passed 2196 | 187 527 1139 343 Spaces Moved 1091 | 151 263 567 110 Core 19 | 19 . . . Treads . | . . . . Legs 1072 | 132 263 567 110 Wheels . | . . . . Hover . | . . . . Flight . | . . . . Fastest Speed 50 | 50 120 190 190 Average Speed 179 | 114 183 192 190 Slowest Speed 330 | 200 190 330 190 Overloaded Moves . | . . . . Propulsion Burnouts . | . . . . Robots Hopped . | . . . . Potential Cave-ins . | . . . . Cave-ins Triggered . | . . . . Exploration Rate (%) 34 | 8 30 84 14 Regions Visited 3 Branch Regions 1 Pre-discovered Areas 1 | . . 1 . Known Exits Taken . | . . . . Unknown Exits Taken 3 | 1 1 1 . Scrap Searched 1 | . . 1 . Spaces Dug . | . . . . Terrain Destroyed . | . . . . Melee . | . . . . Projectile . | . . . . AOE . | . . . . Terrain Rammed . | . . . . Walls Destroyed . | . . . . Machines Disabled . | . . . . Actions | -11 -10 -10 -9 --------- Run | Yrd Mat Min Mat Total 1286 | 162 299 606 219 Wait 83 | . . . 83 Move 1088 | 150 262 566 110 Hop . | . . . . Pick Up 24 | 7 9 8 . Fast Attach 9 | 5 3 1 . Attach 14 | . 1 5 8 Detach 8 | . 2 5 1 Swap . | . . . . Drop 15 | . 9 6 . Fire 40 | . 13 10 17 Melee . | . . . . Ram . | . . . . Kick 5 | . . 5 . Crush . | . . . . Escape Stasis . | . . . . Rewire . | . . . . Trap . | . . . . Miscellaneous . | . . . . Route ------- -11/Scrapyard -10/Materials -10/Mines (discovered 3 exits: *Mat x2 / [*Sub]) -9/Materials History --------- Turn | Location | Event 20 | -11/Scrapyard | Discovered new exit (range 16) 188 | -11/Scrapyard | Entered Materials 311 | -10/Materials | Build established: Mutant 524 | -10/Materials | Discovered new exit (range 8) 715 | -10/Materials | Entered Mines 729 | -10/Mines | Assisted by bots powering up and referring to "LRC-V3" 780 | -10/Mines | Met a Derelict bent on vengeance 917 | -10/Mines | Discovered new exit (range 16) 1098 | -10/Mines | Lost 3 allies 1153 | -10/Mines | Discovered new exit (range 8) 1185 | -10/Mines | Joined a pair of Derelicts in attacking an 0b10 outpost 1543 | -10/Mines | Discovered new exit (range 8) 1594 | -10/Mines | Learned location of Zion (-7) 1854 | -10/Mines | Entered Materials 1854 | -9/Materials | Evolved 2 slots: Power x1, Weapon x1 2179 | -9/Materials | Core integrity fell below 50% 2189 | -9/Materials | Core integrity fell below 20% 2197 | -9/Materials | Destroyed by G-34 Mercenary with Small Laser Last Messages --------------- K-01 Serf collects debris. G-34 Mercenary destroyed. Beamcaster destroyed. Overheating: Energy bleed (-4). K-01 Serf collects debris. R-06 Scavenger collects Aluminum Leg. R-06 Scavenger collects Lgt. Treads. K-01 Serf collects debris. R-06 Scavenger collects Heat Sink. Y-45 Defender destroyed. K-01 Serf collects debris. Acquired 35 matter. Acquired 3 matter. Assault Rifle destroyed. Critical hit (Burn: +37). K-01 Serf collects debris. Acquired 10 matter. Acquired 2 matter. Flight Unit destroyed. K-01 Serf collects debris. Map ----- +----------------------------------------------------+ | ?????????????????????????????????????????????????? | | ?????????????????????????????????????????????????? | | ?????????????????????????????????????????????????? | | ?????????????????????????????????????????????????? | | ?????????????????????????????????????????????????? | | ????????????????????????????????????????????????## | | ????????????????????????????????????????????????# | | ????????????????????????????????????????????????# | | ????????????????????????????????????????????????# | | ????????????????????????????????????????????????# | | ??????????????????????? ??????????????????????# | | ?????????????????????? =!??????????????????????# | | ?????????????????????? a%??????????????????????# | | ?????????????????????? Y!??????????????????????# | | ??????????????????????# ??????????????????????# | | ??????????????????????# ??????????????????????# | | ??????????????????????# ??????????????????????# | | ??????????????????????# #?????????????????????# | | ??????????????????????# #?????????????????????# | | ??????????????????????# #?????????????????????# | | ??????????????????????# #?????????????????????# | | ??????????????????????# #?????????????????????# | | ??????????????????????# #?????????????????????# | | ??????????????????????# #?????????????????????# | | ??????????????????????# #?????????????????????# | | ??????????????????????# =@#?????????????????????# | | ?????????????????????##gr%##???????????????????## | | ?????????????????????# [gk!########+############ | | ?????????????????????# %$* | | ?????????????????????# % % | | ?????????????????????# | | ?????????????????????# a###### ############ | | ?????????????????????## ##????# #??????????## | | ??????????????????????# #?????# #???????????# | | ??????????????????????# #?????# #???????????# | | ??????????????????????# +?????# #???????????# | | ??????????????????????# ??????# #???????????# | | ??????????????????????# ??????# #???????????# | | ??????????????????????# ??????# #???????????# | | ??????????????????????# ??????# #???????????# | | ??????????????????????# ??????# #???????????# | | ??????????????????????# ??????# #???????????# | | ?????????????????????## ####### #???????????# | | ???????????????????? ########??### | | ???????????????????? # #### | | ???????????????????? # + | | ?????????????????????############ # """ #### | | ????????????????????????????????# + """ #??# | | ????????????????????????????????# # """ #??# | | ????????????????????????????????# # #??# | +----------------------------------------------------+ Best States ------------- Heat Dissipation 28 Energy Generation 14 Energy Capacity 265 Matter Stores 300 Matter Capacity 300 Sight Range 16 Robot Scan Range 14 Terrain Scan Density 10 Armor Coverage 150 Evasion (%) 55 Item Schematics ----------------- None Robot Schematics ------------------ None Fabricated ------------ Nothing Repaired ---------- Nothing Studied --------- None Alien Tech Used ----------------- None Achievements -------------- Crack Shot DATA ERROR: Steam Global Achievement% It's Just You One Hack Too Far Challenges ------------ None Game ------ Seed InsulationNeutronTendrils Manual? 0 Play Time 00:20:16 Cumulative 0.6 hours Start 2026.01.23 @ 02:27:29 End 2026.01.23 @ 02:47:26 Sessions 1 Manual Loads 0 Difficulty Rogue Special Mode None Game No. 2 Rogue 2 Adventurer 0 Explorer 0 Win Type - Total 0 Types 0/0/0/0/0/0/0/0/0/0 Lore% 0 Gallery% 1 Achievement% 2 Wizard Run 0 Options --------- Layout 1 ASCII 0 Keyboard 1 Movement Vi Keybinds 0 Fullscreen 1 Font 24/Smallcaps Map View 50x40 Zoom Use 0% Tactical HUD 0 Map Filters NONE Filters NONE Steam 0 RUN: 270ba7d8-0064-443b-a1b5-0d92e6da0542